[Event "3rd FIDE WCCC Blitz U12 2019"]
[Site "Minsk"]
[Date "2019.08.18"]
[Round "3.1"]
[White "Bashirov, Kemal"]
[Black "Khubukshanov, Erdem"]
[Result "*"]
[ECO "D31"]
[WhiteElo "1564"]
[BlackElo "2257"]
[Annotator "NA"]
[PlyCount "33"]
[EventDate "2019.08.18"]
[EventType "swiss"]
[EventCountry "BLR"]
[SourceTitle "playchess.com"]
[Source "ChessBase"]
[SourceQuality "1"]
[TimeControl "300+2"]

1. d4 {[%emt 0:00:00]} d5 {[%emt 0:00:00]} 2. c4 {[%emt 0:00:00]} e6 {[%emt 0:00:00]} 3. Nc3 {[%emt 0:00:01]} c6 {[%emt 0:00:00]} 4. cxd5 {[%emt 0:00:08]} exd5 {[%emt 0:00:01]} 5. Nf3 {[%emt 0:00:01]} Nf6 {[%emt 0:00:03]} 6. Bg5 {[%emt 0:00:01]} Be7 {[%emt 0:00:01]} 7. e3 {[%emt 0:00:05]} Bf5 {[%emt 0:00:02]} 8. Bxf6 {[%emt 0:00:16]} Bxf6 {[%emt 0:00:01]} 9. Bd3 {[%emt 0:00:01]} Bxd3 {[%emt 0:00:03]} 10. Qxd3 {[%emt 0:00:02]} Be7 {[%emt 0:00:03]} 11. O-O {[%emt 0:00:09]} O-O {[%emt 0:00:02]} 12. h3 {[%emt 0:00:10]} Nd7 {[%emt 0:00:03]} 13. Rab1 {[%emt 0:00:05]} a5 {[%emt 0:00:01]} 14. Qc2 {[%emt 0:00:35]} Re8 {[%emt 0:00:13]} 15. Ne2 {[%emt 0:00:08]} Bd6 {[%emt 0:00:13]} 16. a3 {[%emt 0:00:08]} Qe7 {[%emt 0:00:08]} 17. Nc3 {[%emt 0:00:15]} *

[Event "3rd FIDE WCCC Blitz U12 2019"]
[Site "Minsk"]
[Date "2019.08.18"]
[Round "3.2"]
[White "Dovbnia, Nikita"]
[Black "Navumenka, Mikhei"]
[Result "*"]
[ECO "A05"]
[WhiteElo "1777"]
[BlackElo "2148"]
[Annotator "NA"]
[PlyCount "31"]
[EventDate "2019.08.18"]
[EventType "swiss"]
[EventCountry "BLR"]
[SourceTitle "playchess.com"]
[Source "ChessBase"]
[SourceQuality "1"]
[TimeControl "300+2"]

1. Nf3 {[%emt 0:00:01]} Nf6 {[%emt 0:00:00]} 2. c4 {[%emt 0:00:01]} b6 {[%emt 0:00:01]} 3. Nc3 {[%emt 0:00:16]} Bb7 {[%emt 0:00:02]} 4. g3 {[%emt 0:00:02]} e5 {[%emt 0:00:02]} 5. Bg2 {[%emt 0:00:06]} d6 {[%emt 0:00:04]} 6. O-O {[%emt 0:00:07]} Be7 {[%emt 0:00:02]} 7. d4 {[%emt 0:00:10]} exd4 {[%emt 0:00:05]} 8. Nxd4 {[%emt 0:00:02]} Bxg2 {[%emt 0:00:02]} 9. Kxg2 {[%emt 0:00:01]} O-O {[%emt 0:00:13]} 10. e4 {[%emt 0:00:08]} Qd7 {[%emt 0:00:01]} 11. f3 {[%emt 0:00:03]} Nc6 {[%emt 0:00:02]} 12. Nf5 {[%emt 0:00:14]} Ne5 {[%emt 0:00:09]} 13. b3 {[%emt 0:00:11]} Rfe8 {[%emt 0:00:02]} 14. Bb2 {[%emt 0:00:03]} Bf8 {[%emt 0:00:01]} 15. Rc1 {[%emt 0:00:09]} a6 {[%emt 0:00:04]} 16. Nd5 {[%emt 0:00:10]} *

[Event "3rd FIDE WCCC Blitz U12 2019"]
[Site "Minsk"]
[Date "2019.08.18"]
[Round "3.3"]
[White "Chyndygyr, Tamerlan"]
[Black "Sidletskyi, Ivan"]
[Result "*"]
[ECO "E61"]
[WhiteElo "1984"]
[BlackElo "1986"]
[Annotator "NA"]
[PlyCount "27"]
[EventDate "2019.08.18"]
[EventType "swiss"]
[EventCountry "BLR"]
[SourceTitle "playchess.com"]
[Source "ChessBase"]
[SourceQuality "1"]
[TimeControl "300+2"]

1. d4 {[%emt 0:00:00]} Nf6 {[%emt 0:00:00]} 2. c4 {[%emt 0:00:00]} g6 {[%emt 0:00:00]} 3. Nc3 {[%emt 0:00:01]} Bg7 {[%emt 0:00:00]} 4. Nf3 {[%emt 0:00:01]} O-O 5. Bf4 {[%emt 0:00:00]} d6 {[%emt 0:00:06]} 6. e3 {[%emt 0:00:02]} Nh5 {[%emt 0:00:04]} 7. Bg5 {[%emt 0:00:01]} h6 {[%emt 0:00:18]} 8. Bh4 {[%emt 0:00:01]} c6 {[%emt 0:00:18]} 9. Be2 {[%emt 0:00:07]} Qe8 {[%emt 0:00:17]} 10. O-O {[%emt 0:00:30]} f5 {[%emt 0:00:13]} 11. Nd2 {[%emt 0:00:25]} Nf6 {[%emt 0:00:01]} 12. f3 {[%emt 0:00:02]} e5 {[%emt 0:00:07]} 13. Bf2 {[%emt 0:00:07]} Nbd7 {[%emt 0:00:13]} 14. d5 {[%emt 0:00:07]} *

[Event "3rd FIDE WCCC Blitz U12 2019"]
[Site "Minsk"]
[Date "2019.08.18"]
[Round "3.4"]
[White "Mochalov, Dmitriy"]
[Black "Mikko, Rondo"]
[Result "*"]
[ECO "C70"]
[WhiteElo "1852"]
[BlackElo "1514"]
[Annotator "NA"]
[PlyCount "26"]
[EventDate "2019.08.18"]
[EventType "swiss"]
[EventCountry "BLR"]
[SourceTitle "playchess.com"]
[Source "ChessBase"]
[SourceQuality "1"]
[TimeControl "300+2"]

1. e4 {[%emt 0:00:00]} e5 {[%emt 0:00:02]} 2. Nf3 {[%emt 0:00:04]} Nc6 {[%emt 0:00:01]} 3. Bb5 {[%emt 0:00:02]} a6 {[%emt 0:00:02]} 4. Ba4 {[%emt 0:00:01]} b5 {[%emt 0:00:01]} 5. Bb3 {[%emt 0:00:02]} d6 {[%emt 0:00:00]} 6. c3 {[%emt 0:00:02]} Be7 {[%emt 0:00:03]} 7. h3 {[%emt 0:00:01]} Nf6 {[%emt 0:00:01]} 8. O-O {[%emt 0:00:02]} O-O {[%emt 0:00:05]} 9. d4 {[%emt 0:00:04]} Na5 {[%emt 0:00:29]} 10. Bc2 {[%emt 0:00:01]} Bb7 {[%emt 0:00:23]} 11. Re1 {[%emt 0:00:05]} Nd7 {[%emt 0:00:53]} 12. Nbd2 {[%emt 0:00:03]} Bf6 {[%emt 0:00:15]} 13. Nf1 {[%emt 0:00:06]} c5 {[%emt 0:00:08]} *

[Event "3rd FIDE WCCC Blitz U12 2019"]
[Site "Minsk"]
[Date "2019.08.18"]
[Round "3.5"]
[White "Mokhtari Moghadam, Taha"]
[Black "Sahib Singh"]
[Result "*"]
[ECO "D37"]
[WhiteElo "1745"]
[BlackElo "1556"]
[Annotator "NA"]
[PlyCount "26"]
[EventDate "2019.08.18"]
[EventType "swiss"]
[EventCountry "BLR"]
[SourceTitle "playchess.com"]
[Source "ChessBase"]
[SourceQuality "1"]
[TimeControl "300+2"]

1. Nf3 {[%emt 0:00:00]} d5 {[%emt 0:00:00]} 2. d4 {[%emt 0:00:00]} Nf6 {[%emt 0:00:00]} 3. c4 {[%emt 0:00:01]} e6 {[%emt 0:00:01]} 4. Nc3 {[%emt 0:00:03]} Be7 {[%emt 0:00:04]} 5. cxd5 {[%emt 0:00:02]} Nxd5 {[%emt 0:00:02]} 6. e4 {[%emt 0:00:03]} Nxc3 {[%emt 0:00:01]} 7. bxc3 {[%emt 0:00:01]} O-O {[%emt 0:00:03]} 8. Bd3 {[%emt 0:00:07]} c5 {[%emt 0:00:01]} 9. O-O {[%emt 0:00:10]} Nc6 {[%emt 0:00:02]} 10. e5 {[%emt 0:00:11]} cxd4 {[%emt 0:00:06]} 11. cxd4 {[%emt 0:00:02]} h6 {[%emt 0:00:01]} 12. a3 {[%emt 0:00:20]} Kh8 {[%emt 0:00:04]} 13. Bc2 {[%emt 0:00:05]} h5 {[%emt 0:00:51]} *

[Event "3rd FIDE WCCC Blitz U12 2019"]
[Site "Minsk"]
[Date "2019.08.18"]
[Round "3.6"]
[White "Bialiauski, Artsiom"]
[Black "Gavrilov, Maxim"]
[Result "*"]
[ECO "D02"]
[WhiteElo "1844"]
[BlackElo "1808"]
[Annotator "NA"]
[PlyCount "27"]
[EventDate "2019.08.18"]
[EventType "swiss"]
[EventCountry "BLR"]
[SourceTitle "playchess.com"]
[Source "ChessBase"]
[SourceQuality "1"]
[TimeControl "300+2"]

1. d4 {[%emt 0:00:00]} d5 {[%emt 0:00:00]} 2. Nf3 {[%emt 0:00:00]} Nf6 {[%emt 0:00:01]} 3. Bf4 {[%emt 0:00:02]} c5 {[%emt 0:00:01]} 4. c3 {[%emt 0:00:01]} Nc6 {[%emt 0:00:03]} 5. e3 {[%emt 0:00:00]} Qb6 {[%emt 0:00:02]} 6. Qb3 {[%emt 0:00:01]} c4 {[%emt 0:00:01]} 7. Qc2 {[%emt 0:00:01]} Bf5 {[%emt 0:00:03]} 8. Qc1 {[%emt 0:00:01]} h6 {[%emt 0:00:03]} 9. Nbd2 {[%emt 0:00:03]} e6 {[%emt 0:00:02]} 10. Be2 {[%emt 0:00:06]} Nh5 {[%emt 0:00:09]} 11. Be5 {[%emt 0:00:07]} Nxe5 {[%emt 0:00:16]} 12. dxe5 {[%emt 0:00:08]} g6 {[%emt 0:00:49]} 13. Nd4 {[%emt 0:00:15]} Ng7 {[%emt 0:00:15]} 14. g4 {[%emt 0:00:29]} *

[Event "3rd FIDE WCCC Blitz U12 2019"]
[Site "Minsk"]
[Date "2019.08.18"]
[Round "4.1"]
[White "Khubukshanov, Erdem"]
[Black "Mochalov, Dmitriy"]
[Result "1-0"]
[ECO "A48"]
[WhiteElo "2257"]
[BlackElo "1852"]
[Annotator "NA"]
[PlyCount "87"]
[EventDate "2019.08.18"]
[EventType "swiss"]
[EventCountry "BLR"]
[SourceTitle "playchess.com"]
[Source "ChessBase"]
[SourceQuality "1"]
[TimeControl "300+2"]

1. Nf3 {[%emt 0:00:00]} Nf6 {[%emt 0:00:00]} 2. d4 {[%emt 0:00:00]} g6 {[%emt 0:00:00]} 3. Nc3 {[%emt 0:00:01]} d5 {[%emt 0:00:05]} 4. Bf4 {[%emt 0:00:03]} Bg7 {[%emt 0:00:01]} 5. e3 {[%emt 0:00:02]} c6 {[%emt 0:00:02]} 6. h4 {[%emt 0:00:07]} Bg4 {[%emt 0:00:07]} 7. Be2 {[%emt 0:00:00]} Nbd7 {[%emt 0:00:03]} 8. Ne5 {[%emt 0:00:02]} Bxe2 {[%emt 0:00:02]} 9. Qxe2 {[%emt 0:00:01]} h5 {[%emt 0:00:21]} 10. O-O {[%emt 0:00:17]} O-O {[%emt 0:00:04]} 11. Rad1 {[%emt 0:00:03]} Qc8 {[%emt 0:00:05]} 12. e4 {[%emt 0:00:08]} dxe4 {[%emt 0:00:04]} 13. Nxe4 {[%emt 0:00:04]} Nxe4 {[%emt 0:00:08]} 14. Qxe4 {[%emt 0:00:05]} Nf6 {[%emt 0:00:01]} 15. Qe2 {[%emt 0:00:03]} Qf5 {[%emt 0:00:10]} 16. Bh2 {[%emt 0:00:18]} Rad8 {[%emt 0:00:19]} 17. Rfe1 {[%emt 0:00:09]} Nd5 {[%emt 0:00:54]} 18. c3 {[%emt 0:00:06]} e6 {[%emt 0:00:10]} 19. Nc4 {[%emt 0:00:06]} Qf6 {[%emt 0:00:12]} 20. Qe4 {[%emt 0:00:11]} Qe7 {[%emt 0:00:15]} 21. Be5 {[%emt 0:00:26]} Bxe5 {[%emt 0:00:05]} 22. dxe5 {[%emt 0:00:16]} b5 {[%emt 0:00:07]} 23. Na5 {[%emt 0:00:15]} Qc7 {[%emt 0:00:02]} 24. Nb3 {[%emt 0:00:06]} c5 {[%emt 0:00:02]} 25. c4 {[%emt 0:00:09]} bxc4 26. Qxc4 {[%emt 0:00:01]} Rc8 {[%emt 0:00:09]} 27. Rc1 {[%emt 0:00:04]} Qb6 {[%emt 0:00:01]} 28. Qe4 {[%emt 0:00:29]} Qb4 {[%emt 0:00:02]} 29. Rc4 {[%emt 0:00:10]} Qb5 {[%emt 0:00:12]} 30. Rec1 {[%emt 0:00:02]} Qa6 {[%emt 0:00:00]} 31. a3 {[%emt 0:00:32]} Qb5 {[%emt 0:00:01]} 32. Qf3 {[%emt 0:00:13]} Rb8 {[%emt 0:00:14]} 33. Nxc5 {[%emt 0:00:05]} Rfc8 {[%emt 0:00:24]} 34. b3 {[%emt 0:00:16]} Qa5 {[%emt 0:00:10]} 35. b4 {[%emt 0:00:05]} Qb5 {[%emt 0:00:05]} 36. Qe4 {[%emt 0:00:02]} Rd8 {[%emt 0:00:11]} 37. Nxe6 {[%emt 0:00:24]} fxe6 {[%emt 0:00:13]} 38. Qxg6+ Kf8 39. Qh6+ {[%emt 0:00:12]} Kf7 {[%emt 0:00:22]} 40. Qxh5+ {[%emt 0:00:16]} Kf8 {[%emt 0:00:04]} 41. Qh8+ {[%emt 0:00:02]} Kf7 {[%emt 0:00:03]} 42. Qh7+ {[%emt 0:00:01]} Kf8 {[%emt 0:00:01]} 43. Rg4 {[%emt 0:00:10]} Ne7 {[%emt 0:00:22]} 44. Qh8+ {[%emt 0:00:01]} 1-0

[Event "3rd FIDE WCCC Blitz U12 2019"]
[Site "Minsk"]
[Date "2019.08.18"]
[Round "4.2"]
[White "Navumenka, Mikhei"]
[Black "Matviienko, Mykhailo"]
[Result "1/2-1/2"]
[ECO "E16"]
[WhiteElo "2148"]
[BlackElo "1755"]
[Annotator "NA"]
[PlyCount "87"]
[EventDate "2019.08.18"]
[EventType "swiss"]
[EventCountry "BLR"]
[SourceTitle "playchess.com"]
[Source "ChessBase"]
[SourceQuality "1"]
[TimeControl "300+2"]

1. d4 {[%emt 0:00:00]} Nf6 {[%emt 0:00:00]} 2. Nf3 {[%emt 0:00:00]} e6 {[%emt 0:00:00]} 3. c4 {[%emt 0:00:01]} b6 {[%emt 0:00:00]} 4. g3 {[%emt 0:00:02]} Bb7 {[%emt 0:00:01]} 5. Bg2 {[%emt 0:00:00]} Bb4+ {[%emt 0:00:01]} 6. Bd2 {[%emt 0:00:01]} Be7 {[%emt 0:00:01]} 7. O-O {[%emt 0:00:04]} O-O {[%emt 0:00:01]} 8. Qc2 {[%emt 0:00:01]} d5 {[%emt 0:00:01]} 9. Rd1 {[%emt 0:00:02]} Nbd7 {[%emt 0:00:02]} 10. Bf4 {[%emt 0:00:02]} Rc8 {[%emt 0:00:24]} 11. Ne5 {[%emt 0:00:12]} c6 {[%emt 0:00:27]} 12. Nc3 {[%emt 0:00:16]} Nxe5 {[%emt 0:00:06]} 13. dxe5 {[%emt 0:00:09]} Nd7 {[%emt 0:00:01]} 14. h4 {[%emt 0:00:16]} Qc7 {[%emt 0:00:12]} 15. cxd5 {[%emt 0:00:48]} cxd5 {[%emt 0:00:19]} 16. e4 {[%emt 0:00:01]} dxe4 {[%emt 0:00:34]} 17. Bxe4 {[%emt 0:00:01]} Bxe4 {[%emt 0:00:04]} 18. Qxe4 {[%emt 0:00:01]} Nc5 {[%emt 0:00:07]} 19. Qe2 {[%emt 0:00:01]} Rcd8 {[%emt 0:00:05]} 20. Nb5 {[%emt 0:00:06]} Qb8 {[%emt 0:00:04]} 21. Rac1 {[%emt 0:00:12]} Rxd1+ {[%emt 0:00:27]} 22. Rxd1 {[%emt 0:00:01]} a6 {[%emt 0:00:27]} 23. Nd6 {[%emt 0:00:03]} Bxd6 {[%emt 0:00:17]} 24. exd6 {[%emt 0:00:16]} Qb7 {[%emt 0:00:33]} 25. h5 {[%emt 0:00:22]} h6 {[%emt 0:00:07]} 26. Rc1 {[%emt 0:00:22]} a5 {[%emt 0:01:01]} 27. Rd1 {[%emt 0:00:41]} Rd8 {[%emt 0:00:03]} 28. a3 {[%emt 0:00:23]} a4 {[%emt 0:00:05]} 29. Qg4 {[%emt 0:00:09]} Kh8 {[%emt 0:00:11]} 30. Qe2 {[%emt 0:00:03]} f6 {[%emt 0:00:07]} 31. Qd2 {[%emt 0:00:18]} e5 {[%emt 0:00:02]} 32. Bxh6 {[%emt 0:00:09]} gxh6 {[%emt 0:00:02]} 33. Qxh6+ {[%emt 0:00:01]} Kg8 {[%emt 0:00:04]} 34. Qxf6 {[%emt 0:00:02]} Rf8 {[%emt 0:00:03]} 35. Qxe5 Qf7 36. Qg5+ {[%emt 0:00:19]} Kh8 {[%emt 0:00:01]} 37. Qe5+ {[%emt 0:00:02]} Kg8 {[%emt 0:00:00]} 38. Rd2 {[%emt 0:00:15]} Nd7 {[%emt 0:00:01]} 39. Qg5+ {[%emt 0:00:04]} Kh8 {[%emt 0:00:01]} 40. h6 {[%emt 0:00:03]} Nf6 {[%emt 0:00:05]} 41. Re2 {[%emt 0:00:05]} Nh7 {[%emt 0:00:05]} 42. Qe5+ {[%emt 0:00:01]} Qf6 {[%emt 0:00:00]} 43. d7 {[%emt 0:00:05]} Kg8 {[%emt 0:00:07]} 44. Qd5+ {[%emt 0:00:05]} 1/2-1/2

[Event "3rd FIDE WCCC Blitz U12 2019"]
[Site "Minsk"]
[Date "2019.08.18"]
[Round "4.3"]
[White "Sahib Singh"]
[Black "Chyndygyr, Tamerlan"]
[Result "0-1"]
[ECO "B07"]
[WhiteElo "1556"]
[BlackElo "1984"]
[Annotator "NA"]
[PlyCount "116"]
[EventDate "2019.08.18"]
[EventType "swiss"]
[EventCountry "BLR"]
[SourceTitle "playchess.com"]
[Source "ChessBase"]
[SourceQuality "1"]
[TimeControl "300+2"]

1. e4 {[%emt 0:00:00]} d6 {[%emt 0:00:00]} 2. d4 {[%emt 0:00:00]} Nf6 {[%emt 0:00:00]} 3. Nc3 {[%emt 0:00:00]} Nbd7 {[%emt 0:00:00]} 4. Nf3 {[%emt 0:00:03]} e5 {[%emt 0:00:01]} 5. Bc4 {[%emt 0:00:05]} Be7 {[%emt 0:00:02]} 6. dxe5 {[%emt 0:00:02]} dxe5 {[%emt 0:00:02]} 7. O-O {[%emt 0:00:25]} O-O {[%emt 0:00:02]} 8. Qe2 {[%emt 0:00:02]} c6 {[%emt 0:00:01]} 9. Rd1 {[%emt 0:00:01]} Qc7 {[%emt 0:00:02]} 10. Nh4 {[%emt 0:00:10]} b5 {[%emt 0:00:09]} 11. Bd3 {[%emt 0:00:33]} Nc5 {[%emt 0:00:06]} 12. Nf5 {[%emt 0:00:21]} Bxf5 {[%emt 0:00:04]} 13. exf5 {[%emt 0:00:02]} b4 {[%emt 0:00:09]} 14. Ne4 {[%emt 0:00:01]} Ncxe4 {[%emt 0:00:17]} 15. Bxe4 {[%emt 0:00:01]} Rfd8 {[%emt 0:00:04]} 16. Bg5 {[%emt 0:00:21]} Nd5 {[%emt 0:00:54]} 17. Bxe7 {[%emt 0:01:19]} Qxe7 {[%emt 0:00:03]} 18. Bxd5 {[%emt 0:00:25]} cxd5 {[%emt 0:00:01]} 19. Rd2 {[%emt 0:00:04]} Rd6 {[%emt 0:00:23]} 20. Re1 {[%emt 0:00:09]} f6 {[%emt 0:00:05]} 21. Qb5 {[%emt 0:00:08]} Qd7 {[%emt 0:00:30]} 22. Qxb4 {[%emt 0:00:20]} Rb6 {[%emt 0:00:02]} 23. Qc5 {[%emt 0:00:33]} Rb5 {[%emt 0:00:07]} 24. Qa3 {[%emt 0:00:23]} Qxf5 {[%emt 0:00:17]} 25. b3 {[%emt 0:00:04]} Qe6 {[%emt 0:00:07]} 26. Red1 {[%emt 0:00:03]} a5 {[%emt 0:00:06]} 27. Qc1 {[%emt 0:00:07]} Rc5 {[%emt 0:00:08]} 28. Qb2 {[%emt 0:00:02]} Rac8 {[%emt 0:00:05]} 29. a4 {[%emt 0:00:01]} d4 {[%emt 0:00:05]} 30. Kf1 {[%emt 0:00:08]} Rc3 {[%emt 0:00:02]} 31. Re2 {[%emt 0:00:02]} Qc6 {[%emt 0:00:03]} 32. Rdd2 {[%emt 0:00:03]} h6 {[%emt 0:00:03]} 33. h3 {[%emt 0:00:01]} Kh7 {[%emt 0:00:02]} 34. Kg1 {[%emt 0:00:01]} Kh8 {[%emt 0:00:04]} 35. Kh2 {[%emt 0:00:01]} Kh7 {[%emt 0:00:03]} 36. Kg1 {[%emt 0:00:01]} Qc5 {[%emt 0:00:06]} 37. Qb1 {[%emt 0:00:02]} Qa7 {[%emt 0:00:16]} 38. Rd3 {[%emt 0:00:01]} Qa6 {[%emt 0:00:04]} 39. Rxc3 {[%emt 0:00:03]} Rxc3 {[%emt 0:00:02]} 40. Qd1 {[%emt 0:00:02]} Qc6 {[%emt 0:00:02]} 41. Rd2 {[%emt 0:00:01]} Qc5 {[%emt 0:00:02]} 42. Qe2 {[%emt 0:00:02]} f5 {[%emt 0:00:09]} 43. Qh5 {[%emt 0:00:03]} g6 {[%emt 0:00:00]} 44. Qe2 {[%emt 0:00:02]} h5 {[%emt 0:00:05]} 45. Kf1 {[%emt 0:00:01]} e4 {[%emt 0:00:02]} 46. Qd1 {[%emt 0:00:02]} d3 {[%emt 0:00:01]} 47. Kg1 {[%emt 0:00:05]} Rxc2 {[%emt 0:00:02]} 48. Rxc2 Qxc2 {[%emt 0:00:01]} 49. Qf1 {[%emt 0:00:06]} d2 {[%emt 0:00:02]} 50. Qa6 {[%emt 0:00:01]} d1=Q+ {[%emt 0:00:02]} 51. Kh2 {[%emt 0:00:01]} Qc7+ {[%emt 0:00:03]} 52. g3 {[%emt 0:00:01]} Qf3 {[%emt 0:00:02]} 53. Qf1 {[%emt 0:00:01]} Qa7 {[%emt 0:00:02]} 54. Kg1 {[%emt 0:00:01]} Qxg3+ {[%emt 0:00:02]} 55. Kh1 {[%emt 0:00:01]} Qaxf2 {[%emt 0:00:02]} 56. Qxf2 {[%emt 0:00:06]} Qxf2 57. b4 e3 {[%emt 0:00:03]} 58. b5 {[%emt 0:00:02]} e2 {[%emt 0:00:03]} 0-1

[Event "3rd FIDE WCCC Blitz U12 2019"]
[Site "Minsk"]
[Date "2019.08.18"]
[Round "4.4"]
[White "Gavrilov, Maxim"]
[Black "Kolesov, Gordey"]
[Result "0-1"]
[ECO "E21"]
[WhiteElo "1808"]
[BlackElo "1761"]
[Annotator "NA"]
[PlyCount "117"]
[EventDate "2019.08.18"]
[EventType "swiss"]
[EventCountry "BLR"]
[SourceTitle "playchess.com"]
[Source "ChessBase"]
[SourceQuality "1"]
[TimeControl "300+2"]

1. d4 {[%emt 0:00:00]} Nf6 {[%emt 0:00:00]} 2. c4 {[%emt 0:00:01]} e6 {[%emt 0:00:00]} 3. Nc3 {[%emt 0:00:02]} Bb4 {[%emt 0:00:01]} 4. Nf3 {[%emt 0:00:01]} d5 {[%emt 0:00:01]} 5. cxd5 {[%emt 0:00:04]} exd5 {[%emt 0:00:01]} 6. Bg5 {[%emt 0:00:04]} h6 {[%emt 0:00:04]} 7. Bh4 {[%emt 0:00:03]} c6 {[%emt 0:00:06]} 8. e3 {[%emt 0:00:05]} O-O {[%emt 0:00:08]} 9. Bd3 {[%emt 0:00:06]} Re8 {[%emt 0:00:23]} 10. O-O {[%emt 0:00:06]} Nbd7 {[%emt 0:00:02]} 11. a3 {[%emt 0:00:03]} Bd6 {[%emt 0:00:05]} 12. Qc2 {[%emt 0:00:07]} Nf8 {[%emt 0:00:15]} 13. b4 {[%emt 0:00:06]} a6 {[%emt 0:00:01]} 14. Rab1 {[%emt 0:00:03]} Bg4 {[%emt 0:00:09]} 15. Nd2 {[%emt 0:00:20]} Bh5 {[%emt 0:00:18]} 16. a4 {[%emt 0:00:19]} Bg6 {[%emt 0:00:06]} 17. Bxg6 {[%emt 0:00:25]} Nxg6 {[%emt 0:00:00]} 18. Bg3 {[%emt 0:00:02]} Bxg3 {[%emt 0:00:19]} 19. hxg3 {[%emt 0:00:02]} h5 {[%emt 0:00:06]} 20. Nf3 {[%emt 0:00:13]} Ng4 {[%emt 0:00:07]} 21. Qf5 {[%emt 0:00:14]} Qe7 {[%emt 0:00:22]} 22. Rfe1 {[%emt 0:00:28]} Nf6 {[%emt 0:00:05]} 23. b5 {[%emt 0:00:19]} axb5 {[%emt 0:00:02]} 24. axb5 {[%emt 0:00:01]} Ra3 {[%emt 0:00:01]} 25. Qc2 {[%emt 0:00:34]} Ng4 {[%emt 0:00:31]} 26. bxc6 bxc6 27. Na4 {[%emt 0:00:37]} Ra8 {[%emt 0:00:22]} 28. Nc5 {[%emt 0:00:04]} Ra2 {[%emt 0:00:05]} 29. Rb2 {[%emt 0:00:04]} Rxb2 {[%emt 0:00:04]} 30. Qxb2 {[%emt 0:00:01]} h4 {[%emt 0:00:01]} 31. gxh4 Nxh4 {[%emt 0:00:01]} 32. Qb7 {[%emt 0:00:46]} Qxb7 {[%emt 0:00:15]} 33. Nxb7 {[%emt 0:00:03]} Nf5 {[%emt 0:00:11]} 34. g3 {[%emt 0:00:22]} Ra2 {[%emt 0:00:01]} 35. Rf1 {[%emt 0:00:06]} Kf8 {[%emt 0:00:15]} 36. Nc5 {[%emt 0:00:07]} Ke7 {[%emt 0:00:03]} 37. Ne5 {[%emt 0:00:05]} Nxe5 {[%emt 0:00:14]} 38. dxe5 {[%emt 0:00:02]} Rc2 {[%emt 0:00:01]} 39. Nb3 {[%emt 0:00:06]} Rc3 {[%emt 0:00:08]} 40. Nd2 {[%emt 0:00:03]} Ke6 {[%emt 0:00:05]} 41. Nf3 {[%emt 0:00:02]} c5 {[%emt 0:00:04]} 42. Rd1 {[%emt 0:00:02]} c4 {[%emt 0:00:06]} 43. Ng5+ {[%emt 0:00:02]} Kxe5 {[%emt 0:00:03]} 44. Nxf7+ {[%emt 0:00:01]} Kf6 {[%emt 0:00:07]} 45. Nd8 {[%emt 0:00:04]} Ne7 {[%emt 0:00:10]} 46. Nb7 {[%emt 0:00:02]} Rc2 {[%emt 0:00:04]} 47. Nc5 {[%emt 0:00:03]} c3 {[%emt 0:00:06]} 48. Kf1 {[%emt 0:00:02]} Ke5 {[%emt 0:00:10]} 49. Nd3+ {[%emt 0:00:01]} Ke4 {[%emt 0:00:05]} 50. Ke1 {[%emt 0:00:02]} Nf5 {[%emt 0:00:09]} 51. Nb4 {[%emt 0:00:02]} Rb2 {[%emt 0:00:06]} 52. Nxd5 {[%emt 0:00:04]} c2 {[%emt 0:00:16]} 53. Nc3+ {[%emt 0:00:01]} Kf3 {[%emt 0:00:05]} 54. Rc1 {[%emt 0:00:01]} Nd6 {[%emt 0:00:08]} 55. Kd2 {[%emt 0:00:02]} Kxf2 {[%emt 0:00:03]} 56. Rxc2 {[%emt 0:00:01]} Nc4+ {[%emt 0:00:02]} 57. Kd3+ {[%emt 0:00:01] Ne5+ Kd2 Nf3+ Kd3+ Ne1+ Kd2} Rxc2 {[%emt 0:00:05] Kd1 Rxc3} 58. g4 {[%emt 0:00:04] Rxe3} g5 {[%emt 0:00:02] Re5 g6 Nd3 Kd2 Rg5 Kxd3 Rxg6} 59. Ke4 {[%emt 0:00:00] Rf6 Ke5 Rf8 Ke6 g5 Ke7 Rf3 Ke6 g4 Ke5 g3 Ke4 g2 Ke5 g1=Q Ke4 Qg4+ Ke5 Rf5+ Ke6 Qg6+ Ke7 Rf7+ Ke8 Qg8#} 0-1